[Event "45th FIDE Olympiad 2024"]
[Site "Budapest"]
[Date "2024.09.13"]
[Round "3.29"]
[White "Vitiugov, Nikita"]
[Black "Bjerre, Jonas Buhl"]
[Result "1/2-1/2"]
[ECO "C50"]
[WhiteElo "2676"]
[BlackElo "2648"]
[Annotator "TA"]
[PlyCount "129"]
[EventDate "2024.09.05"]
[EventType "team-tourn"]
[EventCountry "HUN"]
[SourceTitle "playchess.com"]
[Source "ChessBase"]
[SourceQuality "1"]
[WhiteTeam "England"]
[BlackTeam "Denmark"]
[WhiteTeamCountry "ENG"]
[BlackTeamCountry "DEN"]
[TimeControl "40/5400+30:1800+30"]

{[%evp 9,129,14,13,0,26,17,29,25,39,17,33,19,32,33,29,22,42,39,36,46,29,40,27,27,30,41,72,40,31,34,32,25,29,0,42,40,49,12,14,2,3,0,0,0,0,0,0,0,0,0,0,0,10,16,10,14,22,27,27,20,29,37,33,27,43,27,26,29,27,27,58,58,65,50,77,77,106,48,56,0,81,66,70,62,63,64,68,71,79,43,45,52,58,35,35,35,52,39,55,39,39,39,50,42,51,36,36,39,39,0,50,0,60,0,44,15,18,0,0,0,0,0]} 1. e4 {[%emt 0:00:05]} e5 {[%emt 0:00:13]} 2. Nf3 {[%emt 0:00:09]} Nc6 {[%emt 0:00:04]} 3. Bc4 {[%emt 0:00:27]} Bc5 {[%emt 0:01:19]} 4. d3 {[%emt 0:00:14]} Nf6 {[%emt 0:00:53]} 5. Nc3 {[%emt 0:00:16]} a6 {[%emt 0:01:47]} 6. Be3 {[%emt 0:02:42]} Bb4 {[%emt 0:09:04]} 7. O-O {[%emt 0:02:41]} Bxc3 {[%emt 0:01:06]} 8. bxc3 {[%emt 0:00:04] White has an edge.} d6 {[%emt 0:00:23]} 9. Ng5 {[%emt 0:06:39]} O-O {[%emt 0:04:10]} 10. f4 {[%emt 0:00:55]} h6 {[%emt 0:13:08]} 11. Nf3 {[%emt 0:06:36]} d5 {[%emt 0:04:38]} 12. exd5 {[%emt 0:04:10]} Nxd5 {[%emt 0:00:13]} 13. Bc5 {[%emt 0:04:50]} Re8 {[%emt 0:02:02]} 14. Nxe5 {[%emt 0:04:26]} Nxe5 {[%emt 0:00:22]} 15. fxe5 {[%emt 0:00:03]} Rxe5 {[%emt 0:02:06]} 16. Bd4 {[%emt 0:05:50] This pair of bishops is nice.} Rg5 {[%emt 0:06:26][%cal Oc7c5]} 17. h4 {[%emt 0:05:59]} Rf5 {[%emt 0:06:57]} 18. Rxf5 {[%emt 0:02:41]} Bxf5 {[%emt 0:00:17]} 19. Qf3 {[%emt 0:14:17][%csl LRd5,LRf5]} Be6 {[%emt 0:00:47]} 20. a4 {[%emt 0:02:08]} f6 {[%emt 0:15:13]} 21. a5 {[%emt 0:05:55]} Qd6 {[%emt 0:02:43]} 22. Rb1 {[%emt 0:03:48]} Rb8 {[%emt 0:01:44]} 23. Qf2 {[%emt 0:05:55]} Bf7 {[%emt 0:02:29]} 24. Re1 {[%emt 0:00:42]} Re8 {[%emt 0:03:34]} 25. Rxe8+ {[%emt 0:02:17]} Bxe8 {[%emt 0:00:04]} 26. Bb3 {[%emt 0:01:02] [#] And now c4 would win.} Bf7 {[%emt 0:02:02]} 27. Qf3 {[%emt 0:03:39]} c6 {[%emt 0:03:50]} 28. Qg4 {[%emt 0:04:17]} Qe7 {[%emt 0:03:24]} 29. Kf2 {[%emt 0:01:08]} Be6 {[%emt 0:03:15]} 30. Qg3 {[%emt 0:00:52]} c5 {[%emt 0:03:11]} 31. c4 {[%emt 0:03:19]} Nb4 {[%emt 0:00:32]} 32. Be3 {[%emt 0:00:46]} Nc6 {[%emt 0:01:12]} 33. Bxh6 {[%emt 0:00:54]} Nxa5 {[%emt 0:00:53]} 34. Ba4 {[%emt 0:00:28]} Nc6 {[%emt 0:04:53]} 35. Bxc6 {[%emt 0:01:29]} bxc6 $11 {[%emt 0:00:03][%mdl 4096] Endgame. KQB-KQB} 36. Be3 {[%emt 0:02:21]} Bf7 {[%emt 0:01:16]} 37. Ke2 {[%emt 0:01:47]} Bh5+ {[%emt 0:00:43]} 38. Kd2 {[%emt 0:00:24]} Qd8 {[%emt 0:00:34]} 39. Kc1 {[%emt 0:02:48]} (39. Bxc5 $2 {loses.} Qa5+ 40. Kc1 Qxc5 $19) 39... Kh7 {[%emt 0:01:51]} 40. Bxc5 {[%emt 0:00:53]} Qa5 {[%emt 0:00:31]} 41. Bd4 {[%emt 0:05:06]} Qb4 {[%emt 0:01:40]} 42. Qe3 {[%emt 0:01:24]} a5 {[%emt 0:02:58]} 43. Bc5 {[%emt 0:05:08]} (43. g4 $16 Bxg4 44. Qe4+ f5 45. Qe5 (45. Qxc6 Qe1+ 46. Kb2 Qb4+ 47. Ka2 Qe7 $16)) 43... Qc3 $14 {[%emt 0:02:11]} 44. Bd4 {[%emt 0:00:26]} (44. Qe4+ $14 Bg6 45. Qe2 (45. Qxc6 Bxd3 46. Qa4 Bxc4 $11)) 44... Qa3+ {[%emt 0:02:37]} (44... Qb4 $1 $11) 45. Kd2 {[%emt 0:00:39]} Qd6 {[%emt 0:03:07]} 46. Bc5 {[%emt 0:02:05]} Qd7 {[%emt 0:00:55]} 47. Qe4+ {[%emt 0:01:33]} Kg8 {[%emt 0:00:38]} 48. Kc3 {[%emt 0:01:17]} Kf7 {[%emt 0:02:12]} 49. Qh7 {[%emt 0:07:14]} Qg4 {[%emt 0:04:04][%csl LRg2,LRh4]} 50. Qh8 {[%emt 0:00:19]} Qe2 {[%emt 0:03:40]} 51. Qf8+ {[%emt 0:02:00]} Kg6 {[%emt 0:00:27][%cal Og6h7]} 52. Qb8 {[%emt 0:01:17]} Kh7 {[%emt 0:02:45]} 53. Qg3 {[%emt 0:00:31] Active counter play!} Kg8 {[%emt 0:01:03]} 54. Bd4 {[%emt 0:01:07]} Kh7 {[%emt 0:00:58]} 55. Kb2 {[%emt 0:00:51]} a4 {[%emt 0:01:22][%cal Oa4a3]} 56. Bc5 {[%emt 0:00:51]} Kg8 {[%emt 0:00:14]} 57. Bb4 {[%emt 0:00:31]} Bg4 {[%emt 0:01:04]} 58. Bc3 {[%emt 0:00:38]} Kh7 {[%emt 0:00:36]} 59. Bd4 {[%emt 0:00:37]} Bh5 {[%emt 0:00:26][%cal Oa4a3]} 60. Bc5 {[%emt 0:00:29]} (60. Qf2 {simplifies} Kg6 61. Ka3 Qxf2 62. Bxf2 Bd1 63. c3) 60... Kg8 $1 {[%emt 0:00:08]} 61. Kc3 {[%emt 0:00:52]} (61. Qb8+ $14 Kh7 62. Qg3) 61... Bg4 {[%emt 0:01:11]} 62. Ba3 {[%emt 0:01:02]} Bh5 {[%emt 0:00:10] The position is equal.} 63. Bd6 {[%emt 0:01:23]} Qd1 {[%emt 0:01:16]} 64. Kb2 {[%emt 0:00:51] Against Qa1+} Qd2 {[%emt 0:00:29] Repels Qe3. aiming for ...Bd1.} 65. Qf4 {[%emt 0:01:48] Weighted Error Value: White=0.11 (very precise) /Black=0.09 (flawless) .  Mistake:       	White=3     	Black=1      Inaccurate:     	White=5     	Black=7      OK:         	White=23    	Black=28     Best:        	White=1     	Black=1      Strong:       	---       	Black=1} 1/2-1/2

[Event "45th FIDE Olympiad 2024"]
[Site "Budapest"]
[Date "2024.09.13"]
[Round "3.29"]
[White "Kawuma, Patrick"]
[Black "Houssein, Mohamed Bilal"]
[Result "1-0"]
[ECO "A13"]
[WhiteElo "2207"]
[BlackElo "1870"]
[Annotator "RC"]
[PlyCount "97"]
[EventDate "2024.09.05"]
[EventType "team-tourn"]
[EventCountry "HUN"]
[SourceTitle "playchess.com"]
[Source "ChessBase"]
[SourceQuality "1"]
[WhiteTeam "Uganda"]
[BlackTeam "Djibouti"]
[WhiteTeamCountry "UGA"]
[BlackTeamCountry "DJI"]
[TimeControl "40/5400+30:1800+30"]

1. c4 Nf6 2. g3 e6 3. Bg2 d5 4. Nf3 dxc4 5. Qa4+ Nbd7 6. Qxc4 a6 7. Qc2 c5 8. O-O b5 9. Ne5 Nd5 10. f4 Bb7 11. Nf3 c4 12. b3 Bc5+ 13. Kh1 cxb3 14. Qxb3 O-O 15. Bb2 N7f6 16. Ne5 Qb6 17. e4 Ne7 18. Nc3 Rad8 19. d3 Ng6 20. Nxg6 hxg6 21. Ne2 Qa7 22. h3 Rd7 23. g4 Rfd8 24. Rad1 Qa8 25. Kh2 b4 26. g5 Nh5 27. Qc2 Bf8 28. d4 a5 29. Ng3 Nxg3 30. Kxg3 Rc8 31. Qb1 a4 32. Rf2 b3 33. axb3 axb3 34. Ba1 Qa4 35. Rd3 Ra8 36. Rxb3 Qxa1 37. Rxb7 Rxb7 38. Qxb7 Ra3+ 39. Kh2 Qxd4 40. Qb2 Qa7 41. Qd2 Kh7 42. f5 exf5 43. exf5 gxf5 44. Rxf5 Bc5 45. Qf4 Bg1+ 46. Kh1 Ra1 47. g6+ Kh8 48. Qh4+ Kg8 49. Qd8# 1-0

[Event "45th FIDE Olympiad 2024"]
[Site "Budapest"]
[Date "2024.09.13"]
[Round "3.30"]
[White "Andersen, Mads"]
[Black "Howell, David W L"]
[Result "1/2-1/2"]
[ECO "C67"]
[WhiteElo "2598"]
[BlackElo "2677"]
[Annotator "RC"]
[PlyCount "92"]
[EventDate "2024.09.05"]
[EventType "team-tourn"]
[EventCountry "HUN"]
[SourceTitle "playchess.com"]
[Source "ChessBase"]
[SourceQuality "1"]
[WhiteTeam "Denmark"]
[BlackTeam "England"]
[WhiteTeamCountry "DEN"]
[BlackTeamCountry "ENG"]
[TimeControl "40/5400+30:1800+30"]

1. e4 {[%emt 0:00:05]} e5 {[%emt 0:01:20]} 2. Nf3 {[%emt 0:00:16]} Nc6 {[%emt 0:00:08]} 3. Bb5 {[%emt 0:00:08]} Nf6 {[%emt 0:00:23]} 4. O-O {[%emt 0:00:21]} Nxe4 {[%emt 0:00:08]} 5. Re1 {[%emt 0:00:10]} Nd6 {[%emt 0:00:37]} 6. a4 {[%emt 0:00:21]} Be7 {[%emt 0:01:43]} 7. Nc3 {[%emt 0:00:43]} a6 {[%emt 0:03:20]} 8. Bf1 {[%emt 0:00:46]} e4 {[%emt 0:26:29]} 9. Nxe4 {[%emt 0:00:14]} Nxe4 {[%emt 0:00:05]} 10. Rxe4 {[%emt 0:00:07]} d5 {[%emt 0:00:07]} 11. Re1 {[%emt 0:00:12]} Bg4 {[%emt 0:00:24]} 12. h3 {[%emt 0:01:13]} Bh5 {[%emt 0:00:14]} 13. c3 {[%emt 0:01:07]} d4 {[%emt 0:00:53]} 14. d3 {[%emt 0:00:15]} O-O {[%emt 0:01:46]} 15. Be2 {[%emt 0:02:10]} Bg6 {[%emt 0:03:20]} 16. Bf4 {[%emt 0:00:30]} Re8 {[%emt 0:34:14]} 17. Bf1 {[%emt 0:13:45]} Qd7 {[%emt 0:06:10]} 18. Qb3 {[%emt 0:18:53]} Na5 {[%emt 0:01:40]} 19. Qa2 {[%emt 0:00:41]} dxc3 {[%emt 0:01:29]} 20. bxc3 {[%emt 0:02:21]} Bd6 {[%emt 0:00:12]} 21. Rxe8+ {[%emt 0:09:15]} Rxe8 {[%emt 0:00:14]} 22. Qd5 {[%emt 0:00:19]} Qf5 {[%emt 0:06:29]} 23. Qxf5 {[%emt 0:03:01]} Bxf5 {[%emt 0:00:07]} 24. Be3 {[%emt 0:04:19]} c5 {[%emt 0:02:46]} 25. Nd2 {[%emt 0:03:16]} Rc8 {[%emt 0:00:07]} 26. g4 {[%emt 0:05:16]} Bd7 {[%emt 0:00:27]} 27. Bg2 {[%emt 0:00:49]} Kf8 {[%emt 0:08:07]} 28. Bd5 {[%emt 0:08:06]} Be7 {[%emt 0:00:12]} 29. Nc4 {[%emt 0:09:46]} Nxc4 {[%emt 0:00:24]} 30. dxc4 {[%emt 0:00:08]} a5 {[%emt 0:00:55]} 31. Bxb7 {[%emt 0:00:55]} Rb8 {[%emt 0:00:01]} 32. Ba6 {[%emt 0:01:22]} Rb3 {[%emt 0:00:49]} 33. Bb5 {[%emt 0:01:48]} Be6 {[%emt 0:00:01]} 34. Kg2 {[%emt 0:12:38]} Bd6 {[%emt 0:00:22]} 35. Rd1 {[%emt 0:00:26]} Ke7 {[%emt 0:00:13]} 36. Bg5+ {[%emt 0:00:35]} f6 {[%emt 0:00:10]} 37. Bd2 {[%emt 0:00:11]} Be5 {[%emt 0:02:02]} 38. Be3 {[%emt 0:01:00]} Bd6 {[%emt 0:00:05]} 39. Bd2 {[%emt 0:00:54]} Be5 {[%emt 0:00:17]} 40. Be3 {[%emt 0:01:26]} Bd6 {[%emt 0:00:02]} 41. Re1 {[%emt 0:05:54]} g5 {[%emt 0:07:14]} 42. Rc1 {[%emt 0:12:44]} h6 {[%emt 0:05:09]} 43. Re1 {[%emt 0:01:22]} Kf7 {[%emt 0:03:35]} 44. Rd1 {[%emt 0:00:55]} Ke7 {[%emt 0:00:16]} 45. Re1 {[%emt 0:00:45]} Kf7 {[%emt 0:00:08]} 46. Rd1 {[%emt 0:01:06]} Ke7 {[%emt 0:00:21]} 1/2-1/2

[Event "45th FIDE Olympiad 2024"]
[Site "Budapest"]
[Date "2024.09.13"]
[Round "3.31"]
[White "McShane, Luke J"]
[Black "Thybo, Jesper Sondergaard"]
[Result "1/2-1/2"]
[ECO "C65"]
[WhiteElo "2611"]
[BlackElo "2555"]
[Annotator "RC"]
[PlyCount "77"]
[EventDate "2024.09.05"]
[EventType "team-tourn"]
[EventCountry "HUN"]
[SourceTitle "playchess.com"]
[Source "ChessBase"]
[SourceQuality "1"]
[WhiteTeam "England"]
[BlackTeam "Denmark"]
[WhiteTeamCountry "ENG"]
[BlackTeamCountry "DEN"]
[TimeControl "40/5400+30:1800+30"]

1. e4 {[%emt 0:00:05]} e5 {[%emt 0:00:10]} 2. Nf3 {[%emt 0:00:08]} Nc6 {[%emt 0:00:09]} 3. Bb5 {[%emt 0:00:16]} Nf6 {[%emt 0:00:17]} 4. d3 {[%emt 0:00:18]} Bc5 {[%emt 0:00:14]} 5. Bxc6 {[%emt 0:00:05]} dxc6 {[%emt 0:00:06]} 6. Nbd2 {[%emt 0:00:11]} Nd7 {[%emt 0:00:43]} 7. Nc4 {[%emt 0:02:49]} f6 {[%emt 0:01:06]} 8. Bd2 {[%emt 0:00:26]} Nf8 {[%emt 0:03:56]} 9. b4 {[%emt 0:00:49]} Be7 {[%emt 0:00:33]} 10. a4 {[%emt 0:02:59]} Ng6 {[%emt 0:14:27]} 11. Ne3 {[%emt 0:02:08]} O-O {[%emt 0:03:10]} 12. h4 {[%emt 0:01:48]} f5 {[%emt 0:12:11]} 13. Bc3 {[%emt 0:20:19]} fxe4 {[%emt 0:06:57]} 14. dxe4 {[%emt 0:00:27]} Nxh4 {[%emt 0:01:02]} 15. Nxh4 {[%emt 0:07:57]} Bxh4 {[%emt 0:00:06]} 16. Qxd8 {[%emt 0:00:10]} Bxd8 {[%emt 0:00:08]} 17. Nc4 {[%emt 0:25:47]} Bf6 {[%emt 0:01:47]} 18. Nxe5 {[%emt 0:01:46]} g5 {[%emt 0:02:08]} 19. O-O-O {[%emt 0:02:39]} Re8 {[%emt 0:03:04]} 20. Rh5 {[%emt 0:05:15]} h6 {[%emt 0:01:45]} 21. f4 {[%emt 0:09:15]} Bxe5 {[%emt 0:06:05]} 22. fxe5 {[%emt 0:02:23]} Bg4 {[%emt 0:00:07]} 23. Rxh6 {[%emt 0:00:41]} Bxd1 {[%emt 0:01:20]} 24. e6 {[%emt 0:08:33]} Kf8 {[%emt 0:00:19]} 25. Rh7 {[%emt 0:00:05]} Be2 {[%emt 0:12:15]} 26. e7+ {[%emt 0:01:50]} Rxe7 {[%emt 0:02:37]} 27. Rh8+ {[%emt 0:00:06]} Kf7 {[%emt 0:00:03]} 28. Rxa8 {[%emt 0:00:05]} Rxe4 {[%emt 0:00:16]} 29. Rxa7 {[%emt 0:00:14]} Ba6 {[%emt 0:00:18]} 30. b5 {[%emt 0:01:40]} cxb5 {[%emt 0:00:08]} 31. axb5 {[%emt 0:00:02]} Bxb5 {[%emt 0:00:13]} 32. Rxb7 {[%emt 0:00:04]} Bf1 {[%emt 0:00:30]} 33. Rxc7+ {[%emt 0:01:17]} Kg6 {[%emt 0:05:17]} 34. g3 {[%emt 0:00:28]} Re3 {[%emt 0:00:31]} 35. g4 {[%emt 0:01:07]} Re4 {[%emt 0:00:27]} 36. Rc6+ {[%emt 0:01:55]} Kh7 {[%emt 0:00:08]} 37. Rc7+ {[%emt 0:00:28]} Kg6 {[%emt 0:00:09]} 38. Rc6+ {[%emt 0:00:05]} Kh7 {[%emt 0:00:04]} 39. Rc7+ {[%emt 0:02:00]} 1/2-1/2

[Event "45th FIDE Olympiad 2024"]
[Site "Budapest"]
[Date "2024.09.13"]
[Round "3.31"]
[White "Nsubuga, Haruna"]
[Black "Mohamed, Ali Dima"]
[Result "1-0"]
[ECO "D02"]
[WhiteElo "2243"]
[BlackElo "1761"]
[Annotator "RC"]
[PlyCount "47"]
[EventDate "2024.09.05"]
[EventType "team-tourn"]
[EventCountry "HUN"]
[SourceTitle "playchess.com"]
[Source "ChessBase"]
[SourceQuality "1"]
[WhiteTeam "Uganda"]
[BlackTeam "Djibouti"]
[WhiteTeamCountry "UGA"]
[BlackTeamCountry "DJI"]
[TimeControl "40/5400+30:1800+30"]

1. d4 d5 2. Nf3 Nf6 3. g3 Bf5 4. c4 e6 5. Qb3 c6 6. Qxb7 Be4 7. Qxa8 Bxf3 8. exf3 Qc7 9. Bf4 Bd6 10. Bxd6 Qxd6 11. Qxa7 Qb4+ 12. Nd2 O-O 13. a3 Qxb2 14. Rb1 Qc2 15. Qxb8 Nd7 16. Qb3 Qg6 17. f4 h6 18. Qd3 f5 19. c5 Nf6 20. Nf3 Ne4 21. Ne5 Qe8 22. Rb6 Qa8 23. Nxc6 Kh7 24. Bg2 1-0

[Event "45th FIDE Olympiad 2024"]
[Site "Budapest"]
[Date "2024.09.13"]
[Round "3.32"]
[White "Olsen, Filip Boe"]
[Black "Jones, Gawain C B"]
[Result "1/2-1/2"]
[ECO "A48"]
[WhiteElo "2441"]
[BlackElo "2646"]
[Annotator "TA"]
[PlyCount "128"]
[EventDate "2024.09.05"]
[EventType "team-tourn"]
[EventCountry "HUN"]
[SourceTitle "playchess.com"]
[Source "ChessBase"]
[SourceQuality "1"]
[WhiteTeam "Denmark"]
[BlackTeam "England"]
[WhiteTeamCountry "DEN"]
[BlackTeamCountry "ENG"]
[TimeControl "40/5400+30:1800+30"]

{[%evp 11,128,0,0,0,13,0,0,0,0,0,20,0,16,21,21,21,22,18,46,43,47,39,44,45,50,24,21,8,16,0,47,48,53,26,93,98,113,110,127,79,72,45,43,51,57,43,49,54,72,48,60,23,31,0,0,0,16,18,25,0,0,0,0,0,0,0,0,-16,-20,-16,0,0,-8,0,0,0,0,0,0,0,0,0,0,0,0,0,0,0,0,0,0,0,0,0,0,0,0,0,0,0,0,0,0,0,0,0,0,0,0,0,0,0,0,0,0,0,0,0,0]} 1. d4 {[%emt 0:00:10]} Nf6 {[%emt 0:00:08]} 2. Nf3 {[%emt 0:00:09]} g6 {[%emt 0:00:16]} 3. Bf4 {[%emt 0:00:12]} Bg7 {[%emt 0:00:09]} 4. e3 {[%emt 0:00:10]} d6 {[%emt 0:00:39]} 5. h3 {[%emt 0:00:19]} O-O {[%emt 0:00:12]} 6. Be2 {[%emt 0:00:22]} Nbd7 {[%emt 0:01:58]} 7. a4 {[%emt 0:00:39]} b6 {[%emt 0:01:43]} 8. O-O {[%emt 0:00:38]} a5 {[%emt 0:04:42]} 9. Nc3 {[%emt 0:00:30]} Bb7 {[%emt 0:00:55]} 10. Re1 {[%emt 0:00:30]} e6 {[%emt 0:07:19]} 11. Bb5 {[%emt 0:03:46]} Ne4 {[%emt 0:04:01]} 12. Nxe4 {[%emt 0:02:27]} Bxe4 {[%emt 0:00:06]} 13. c3 {[%emt 0:08:49]} h6 {[%emt 0:03:05]} 14. Bg3 {[%emt 0:07:20]} Nf6 {[%emt 0:05:26]} 15. Nd2 {[%emt 0:03:01]} Bb7 {[%emt 0:01:39]} 16. e4 {[%emt 0:07:58]} e5 {[%emt 0:00:43]} 17. Bh4 {[%emt 0:08:24]} Qc8 {[%emt 0:06:44]} 18. d5 {[%emt 0:10:51]} Ba6 {[%emt 0:05:46]} 19. Bc6 {[%emt 0:01:02]} Bb7 {[%emt 0:00:11]} 20. Bb5 {[%emt 0:00:29]} Kh8 {[%emt 0:02:31]} (20... Ba6 $11) 21. b4 $14 {[%emt 0:08:20]} Nh5 {[%emt 0:05:28]} 22. bxa5 {[%emt 0:04:27]} bxa5 {[%emt 0:01:30]} (22... Rxa5 $11 {keeps the balance.} 23. c4 f6) 23. c4 $16 {[%emt 0:00:39][%cal Oc4c5] White is more active.} Nf4 {[%emt 0:05:08] [#]} ({Wrong is} 23... c6 $2 24. dxc6 Bxc6 25. Be7 $18) 24. c5 $1 {[%emt 0:02:10][%mdl 512]} dxc5 {[%emt 0:01:00]} (24... f5 25. Rc1) 25. Be7 {[%emt 0:02:17]} ({White should try} 25. Rc1) 25... Rg8 {[%emt 0:00:34]} 26. Bxc5 {[%emt 0:06:27]} c6 {[%emt 0:01:39]} 27. dxc6 {[%emt 0:00:07]} Bxc6 {[%emt 0:00:06]} 28. Be3 {[%emt 0:01:01] [#] Rc1 is the strong threat.} Qd7 {[%emt 0:05:24]} 29. Qb3 {[%emt 0:02:30]} Rgc8 {[%emt 0:04:09]} 30. Bxc6 {[%emt 0:03:44]} Rxc6 {[%emt 0:01:57]} 31. Nf3 {[%emt 0:01:24]} Qc7 {[%emt 0:04:00]} 32. Bxf4 {[%emt 0:05:35]} exf4 {[%emt 0:00:13]} 33. Rab1 {[%emt 0:00:16]} Rc4 {[%emt 0:04:49]} 34. e5 {[%emt 0:03:49]} Re8 {[%emt 0:00:42]} 35. Qb5 {[%emt 0:01:19]} Re7 {[%emt 0:02:53] The position is equal.} 36. h4 {[%emt 0:04:27]} Rc5 {[%emt 0:01:48]} 37. Qb8+ {[%emt 0:00:36]} Kh7 {[%emt 0:02:38]} 38. Qxc7 {[%emt 0:00:33]} Rexc7 {[%emt 0:00:07]} 39. Rb5 {[%emt 0:01:07]} Rxb5 {[%emt 0:06:30]} 40. axb5 $11 {[%emt 0:00:02][%mdl 4096] Endgame. KRB-KRN} Rb7 {[%emt 0:00:10][%cal Bc7b7,Bb7b5,Bb5a5,Ba5a1][%mdl 32]} 41. Rb1 {[%emt 0:06:17]} Bf8 {[%emt 0:04:35]} (41... a4 42. Ra1 $15) 42. Nd2 $1 {[%emt 0:02:37]} Bb4 {[%emt 0:16:53]} 43. Nc4 {[%emt 0:00:40]} Rxb5 {[%emt 0:01:34] And now ...Rc5 would win.} 44. Nxa5 {[%emt 0:00:29]} Rxa5 {[%emt 0:00:06]} 45. Rxb4 {[%emt 0:00:06] KR-KR} g5 {[%emt 0:00:06]} 46. Rb7 {[%emt 0:08:04]} Kg8 {[%emt 0:00:17]} 47. Rb6 {[%emt 0:00:30]} Kg7 {[%emt 0:04:05]} 48. e6 {[%emt 0:00:14]} f5 {[%emt 0:05:10]} 49. h5 {[%emt 0:02:05]} Ra1+ {[%emt 0:01:28]} 50. Kh2 {[%emt 0:00:02]} Re1 {[%emt 0:00:09]} 51. f3 {[%emt 0:09:06]} Re2 {[%emt 0:01:55]} 52. e7 {[%emt 0:02:57]} Rxe7 {[%emt 0:00:24]} 53. Rg6+ {[%emt 0:00:04]} Kh7 {[%emt 0:00:11]} 54. Rf6 {[%emt 0:00:11]} Re5 {[%emt 0:00:07]} 55. Kg1 {[%emt 0:00:51]} Ra5 {[%emt 0:01:11]} 56. Rf7+ {[%emt 0:00:31]} Kg8 {[%emt 0:00:06]} 57. Rf6 {[%emt 0:00:08]} Kg7 {[%emt 0:00:14]} 58. Rg6+ {[%emt 0:00:04]} Kf7 {[%emt 0:00:48]} 59. Rxh6 {[%emt 0:00:34]} g4 {[%emt 0:00:09]} 60. fxg4 {[%emt 0:01:44]} fxg4 {[%emt 0:00:06]} 61. g3 {[%emt 0:00:58]} Ra1+ {[%emt 0:00:58]} 62. Kf2 {[%emt 0:00:06]} Ra2+ {[%emt 0:00:04]} 63. Kf1 {[%emt 0:00:14]} Ra1+ {[%emt 0:02:34]} 64. Kf2 {[%emt 0:00:07]} Ra2+ {[%emt 0:00:32] Weighted Error Value: White=0.07 (flawless) /Black=0.07 (flawless) .  Mistake:       	White=1     	Black=2      Inaccurate:     	White=5     	Black=1      OK:         	White=33    	Black=15     Best:        	White=3     	Black=1      Strong:       	White=1     	---} 1/2-1/2

[Event "45th FIDE Olympiad 2024"]
[Site "Budapest"]
[Date "2024.09.13"]
[Round "3.33"]
[White "Maghsoodloo, Parham"]
[Black "Mchedlishvili, Mikheil"]
[Result "1-0"]
[ECO "A16"]
[WhiteElo "2723"]
[BlackElo "2574"]
[Annotator "TA"]
[PlyCount "59"]
[EventDate "2024.09.05"]
[EventType "team-tourn"]
[EventCountry "HUN"]
[SourceTitle "playchess.com"]
[Source "ChessBase"]
[SourceQuality "1"]
[WhiteTeam "Iran"]
[BlackTeam "Georgia"]
[WhiteTeamCountry "IRI"]
[BlackTeamCountry "GEO"]
[TimeControl "40/5400+30:1800+30"]

{[%evp 9,59,-17,12,-37,-41,-59,-36,-33,-17,-37,-32,-37,-19,-39,-42,-35,-39,-50,-11,-12,0,0,0,-2,2,2,32,28,31,0,0,0,64,45,85,99,104,99,101,100,253,232,287,268,264,275,354,364,648,648,643,639]} 1. c4 {[%emt 0:00:02]} Nf6 {[%emt 0:00:41]} 2. Nc3 {[%emt 0:04:58]} d5 {[%emt 0:02:21]} 3. cxd5 {[%emt 0:01:58]} Nxd5 {[%emt 0:00:08]} 4. Qa4+ {[%emt 0:10:03]} Nc6 {[%emt 0:06:31]} 5. Nf3 {[%emt 0:01:44]} g6 {[%emt 0:05:14]} 6. h4 {[%emt 0:17:23]} (6. Ne5 $11) 6... Nb6 $15 {[%emt 0:05:29]} 7. Qd1 {[%emt 0:01:47]} Bg4 {[%emt 0:05:13]} 8. Nh2 {[%emt 0:01:00] Black is slightly better.} Bf5 {[%emt 0:03:48]} 9. e4 {[%emt 0:06:48]} Be6 {[%emt 0:01:38]} 10. Bb5 {[%emt 0:00:06]} Bg7 {[%emt 0:10:17]} 11. Nf3 {[%emt 0:02:48]} Bg4 {[%emt 0:11:02]} 12. Bxc6+ {[%emt 0:02:58]} bxc6 {[%emt 0:00:06]} 13. Qc2 {[%emt 0:06:55]} Qd7 {[%emt 0:05:28]} 14. Nh2 {[%emt 0:08:41]} Be6 {[%emt 0:05:12]} 15. b3 {[%emt 0:00:57] Dodges Bc4} O-O {[%emt 0:07:31]} 16. Bb2 {[%emt 0:01:46]} Rfd8 {[%emt 0:02:17]} 17. Ne2 {[%emt 0:04:03]} c5 {[%emt 0:01:59]} 18. h5 {[%emt 0:06:12]} c4 {[%emt 0:01:31]} 19. hxg6 {[%emt 0:02:05]} hxg6 {[%emt 0:01:10]} 20. Nf3 {[%emt 0:01:01]} cxb3 {[%emt 0:08:16]} (20... Bxb2 $11 21. Qxb2 f6) 21. axb3 $14 {[%emt 0:00:18]} Qd3 {[%emt 0:00:21]} 22. Qxd3 {[%emt 0:01:33]} (22. Qxc7 $2 Bxb2 23. Rd1 Bxb3 $19 (23... Qxe4 $2 24. d4 $19)) 22... Rxd3 {[%emt 0:00:03]} 23. Bxg7 {[%emt 0:00:10]} Kxg7 {[%emt 0:00:05]} 24. Ng5 {[%emt 0:03:44] [#] Nf4 is the strong threat.} Kg8 $2 {[%emt 0:12:15] A mistake that costs the game.} (24... Kf6 $16 {is a better defense.} 25. Nxe6 fxe6) 25. Nf4 $18 {[%emt 0:01:27][%csl LRd3,LRe6]} Rxb3 {[%emt 0:00:23]} 26. Nfxe6 {[%emt 0:04:02]} fxe6 {[%emt 0:00:05] [#]} 27. Rh6 $1 {[%emt 0:00:07]} (27. Nxe6 $6 a5 $16) 27... a5 {[%emt 0:03:40]} 28. Ke2 {[%emt 0:01:00]} (28. Nxe6 Kf7 29. Ng5+ (29. Nxc7 Rc8 $14) 29... Ke8 30. Rh8+ (30. Rxg6 Ra7 $18) 30... Kd7 31. Rxa8 Nxa8 32. Rxa5 Nb6 $18) (28. Rxg6+ Kf8 29. Ke2 (29. Nxe6+ Kf7 $18) (29. Rxe6 a4 $16) 29... a4 $18) 28... Kf8 $2 {[%emt 0:00:40]} (28... Rb5) 29. Rh8+ {[%emt 0:00:31]} Kg7 {[%emt 0:00:16]} 30. Rh7+ {[%emt 0:00:19] Weighted Error Value: White=0.06 (flawless) /Black=0.42.  Mistake:       	---       	Black=3      Inaccurate:     	White=1     	Black=3      OK:         	White=17    	Black=5      Best:        	---       	Black=1      Strong:       	White=1     	---} (30. Nxe6+ $2 {loses.} Kxh8 31. Nf4 Kg7 $19) 1-0